Employee Name,Substantive Rank,Date Expense Incurred,Expense Type,Line Item Description,Expense Line Amount
3* and above,,,,,
"BAGWELL, GREGORY JACK",Air Mshl,24/08/2015,Other Duty Travel,Foreign Currency Exch Costs,9.46
"BARRONS, RICHARD LAWSON",Gen,24/04/2015,Other Duty Travel,Subsistence Allowance,37.68
"BARRONS, RICHARD LAWSON",Gen,25/04/2015,Other Duty Travel,Subsistence Allowance,14.49
"BARRONS, RICHARD LAWSON",Gen,01/07/2015,Other Duty Travel,Subsistence Allowance,18.48
"BARRONS, RICHARD LAWSON",Gen,08/07/2015,Other Duty Travel,Subsistence Allowance,18.48
"BARRONS, RICHARD LAWSON",Gen,23/06/2015,Other Duty Travel,Subsistence Allowance,18.48
"BARRONS, RICHARD LAWSON",Gen,23/06/2015,Other Duty Travel,Subsistence Allowance,202.8
"BARRONS, RICHARD LAWSON",Gen,26/05/2015,Other Duty Travel,Subsistence Allowance,18.48
"BASHALL, JAMES IAN",Lt Gen,02/08/2015,Other Duty Travel,Taxi Fare,12.9
"BASHALL, JAMES IAN",Lt Gen,07/08/2015,Other Duty Travel,Taxi Fare,14.5
"BASHALL, JAMES IAN",Lt Gen,06/07/2015,Other Duty Travel,Subsistence Allowance,140
"BASHALL, JAMES IAN",Lt Gen,23/07/2015,Other Duty Travel,Subsistence Allowance,70
"BASHALL, JAMES IAN",Lt Gen,22/09/2015,Other Duty Travel,Subsistence Allowance,4.19
"BECKETT, THOMAS ANTHONY",Lt Gen,23/06/2015,Administrative Costs,Army Uniform Grants,610
"BOLLOM, SIMON JOHN",Air Mshl,16/06/2015,Other Duty Travel,Subsistence Allowance,18.91
"BOLLOM, SIMON JOHN",Air Mshl,27/05/2015,Other Duty Travel,Excess Fares,60.32
"BOLLOM, SIMON JOHN",Air Mshl,27/05/2015,Other Duty Travel,Taxi Fare,30.91
"BOLLOM, SIMON JOHN",Air Mshl,27/05/2015,Other Duty Travel,Subsistence Allowance,218.61
"BOLLOM, SIMON JOHN",Air Mshl,16/08/2015,Other Duty Travel,Parking Fees,19.99
"BOLLOM, SIMON JOHN",Air Mshl,16/08/2015,Other Duty Travel,Taxi Fare,20
"BOLLOM, SIMON JOHN",Air Mshl,15/07/2015,Other Duty Travel,Subsistence Allowance,129
"BOLLOM, SIMON JOHN",Air Mshl,29/07/2015,Other Duty Travel,Subsistence Allowance,80.94
"BOLLOM, SIMON JOHN",Air Mshl,09/07/2015,Other Duty Travel,Subsistence Allowance,125
"BOLLOM, SIMON JOHN",Air Mshl,14/07/2015,Other Duty Travel,Subsistence Allowance,145
"BOLLOM, SIMON JOHN",Air Mshl,16/07/2015,Other Duty Travel,Tube/Underground Fares,4.5
"BOLLOM, SIMON JOHN",Air Mshl,25/06/2015,Other Duty Travel,Subsistence Allowance,133.25
"DEVERELL, CHRISTOPHER MICHAEL",Lt Gen,13/07/2015,Other Duty Travel,Subsistence Allowance,95
"DEVERELL, CHRISTOPHER MICHAEL",Lt Gen,14/07/2015,Other Duty Travel,Subsistence Allowance,95
"DEVERELL, CHRISTOPHER MICHAEL",Lt Gen,01/07/2015,Other Duty Travel,Taxi Fare,16
"DEVERELL, CHRISTOPHER MICHAEL",Lt Gen,29/06/2015,Other Duty Travel,Subsistence Allowance,150
"DEVERELL, CHRISTOPHER MICHAEL",Lt Gen,30/06/2015,Other Duty Travel,Subsistence Allowance,150
"DEVERELL, CHRISTOPHER MICHAEL",Lt Gen,01/07/2015,Other Duty Travel,Subsistence Allowance,150
"DEVERELL, CHRISTOPHER MICHAEL",Lt Gen,02/07/2015,Other Duty Travel,Subsistence Allowance,150
"DEVERELL, CHRISTOPHER MICHAEL",Lt Gen,30/06/2015,Other Duty Travel,Subsistence Allowance,16.03
"DEVERELL, CHRISTOPHER MICHAEL",Lt Gen,02/07/2015,Other Duty Travel,Subsistence Allowance,23
"DEVERELL, CHRISTOPHER MICHAEL",Lt Gen,01/07/2015,Other Duty Travel,Taxi Fare,16.5
"DEVERELL, CHRISTOPHER MICHAEL",Lt Gen,29/06/2015,Other Duty Travel,Subsistence Allowance,19.95
"DEVERELL, CHRISTOPHER MICHAEL",Lt Gen,01/07/2015,Other Duty Travel,Subsistence Allowance,3.99
"DEVERELL, CHRISTOPHER MICHAEL",Lt Gen,30/06/2015,Other Duty Travel,Taxi Fare,4.5
"DEVERELL, CHRISTOPHER MICHAEL",Lt Gen,13/07/2015,Other Duty Travel,Motor Mileage Allowance,23.5
"DEVERELL, CHRISTOPHER MICHAEL",Lt Gen,15/07/2015,Other Duty Travel,Motor Mileage Allowance,23.5
"DEVERELL, CHRISTOPHER MICHAEL",Lt Gen,13/07/2015,Other Duty Travel,Parking Fees,19
"DEVERELL, CHRISTOPHER MICHAEL",Lt Gen,13/07/2015,Other Duty Travel,Subsistence Allowance,25
"DEVERELL, CHRISTOPHER MICHAEL",Lt Gen,14/07/2015,Other Duty Travel,Subsistence Allowance,25
"DEVERELL, CHRISTOPHER MICHAEL",Lt Gen,21/07/2015,Other Duty Travel,Subsistence Allowance,25
"DEVERELL, CHRISTOPHER MICHAEL",Lt Gen,21/07/2015,Other Duty Travel,Taxi Fare,9
"DEVERELL, CHRISTOPHER MICHAEL",Lt Gen,21/07/2015,Other Duty Travel,Taxi Fare,9
"DEVERELL, CHRISTOPHER MICHAEL",Lt Gen,15/07/2015,Other Duty Travel,Subsistence Allowance,14
"DEVERELL, CHRISTOPHER MICHAEL",Lt Gen,21/07/2015,Other Duty Travel,Subsistence Allowance,185
"DEVERELL, CHRISTOPHER MICHAEL",Lt Gen,13/07/2015,Other Duty Travel,Taxi Fare,4
"DEVERELL, CHRISTOPHER MICHAEL",Lt Gen,29/05/2015,Other Duty Travel,Subsistence Allowance,151.2
"DEVERELL, CHRISTOPHER MICHAEL",Lt Gen,03/06/2015,Other Duty Travel,Subsistence Allowance,25
"DEVERELL, CHRISTOPHER MICHAEL",Lt Gen,29/05/2015,Other Duty Travel,Congestion Charge,11.5
"DEVERELL, CHRISTOPHER MICHAEL",Lt Gen,03/06/2015,Other Duty Travel,Taxi Fare,4
"DEVERELL, CHRISTOPHER MICHAEL",Lt Gen,23/06/2015,Other Duty Travel,Subsistence Allowance,330
"DEVERELL, CHRISTOPHER MICHAEL",Lt Gen,23/06/2015,Other Duty Travel,Subsistence Allowance,25
"DEVERELL, CHRISTOPHER MICHAEL",Lt Gen,24/06/2015,Other Duty Travel,Subsistence Allowance,18.15
"DEVERELL, CHRISTOPHER MICHAEL",Lt Gen,25/06/2015,Other Duty Travel,Taxi Fare,23
"DEVERELL, CHRISTOPHER MICHAEL",Lt Gen,03/06/2015,Other Duty Travel,Subsistence Allowance,65
"DEVERELL, CHRISTOPHER MICHAEL",Lt Gen,25/06/2015,Other Duty Travel,Tube/Underground Fares,4.8
"DEVERELL, CHRISTOPHER MICHAEL",Lt Gen,09/09/2015,Other Duty Travel,Taxi Fare,21.5
"DEVERELL, CHRISTOPHER MICHAEL",Lt Gen,09/09/2015,Other Duty Travel,Subsistence Allowance,7
"DEVERELL, CHRISTOPHER MICHAEL",Lt Gen,08/09/2015,Other Duty Travel,Subsistence Allowance,158
"DEVERELL, CHRISTOPHER MICHAEL",Lt Gen,17/09/2015,Other Duty Travel,Subsistence Allowance,51
"DEVERELL, CHRISTOPHER MICHAEL",Lt Gen,09/09/2015,Other Duty Travel,Taxi Fare,6
"DEVERELL, CHRISTOPHER MICHAEL",Lt Gen,09/09/2015,Other Duty Travel,Taxi Fare,6
"DEVERELL, CHRISTOPHER MICHAEL",Lt Gen,15/09/2015,Other Duty Travel,Taxi Fare,11.5
"EVANS, CHRISTOPHER PAUL ANTHONY",Air Mshl,12/08/2015,Other Duty Travel,Subsistence Allowance,5.95
"EVANS, CHRISTOPHER PAUL ANTHONY",Air Mshl,20/08/2015,Other Duty Travel,Subsistence Allowance,146
"EVANS, CHRISTOPHER PAUL ANTHONY",Air Mshl,26/08/2015,Other Duty Travel,Subsistence Allowance,4.99
"EVANS, CHRISTOPHER PAUL ANTHONY",Air Mshl,25/08/2015,Other Duty Travel,Subsistence Allowance,6.28
"EVANS, CHRISTOPHER PAUL ANTHONY",Air Mshl,21/07/2015,Other Duty Travel,Subsistence Allowance,148.4
"EVANS, CHRISTOPHER PAUL ANTHONY",Air Mshl,02/07/2015,Other Duty Travel,Subsistence Allowance,146.1
"EVANS, CHRISTOPHER PAUL ANTHONY",Air Mshl,02/07/2015,Other Duty Travel,Taxi Fare,13
"EVANS, CHRISTOPHER PAUL ANTHONY",Air Mshl,16/07/2015,Other Duty Travel,Subsistence Allowance,601.99
"EVANS, CHRISTOPHER PAUL ANTHONY",Air Mshl,14/07/2015,Other Duty Travel,Subsistence Allowance,18.4
"EVANS, CHRISTOPHER PAUL ANTHONY",Air Mshl,14/07/2015,Other Duty Travel,Taxi Fare,18
"EVANS, CHRISTOPHER PAUL ANTHONY",Air Mshl,30/06/2015,Other Duty Travel,Subsistence Allowance,6.49
"EVANS, CHRISTOPHER PAUL ANTHONY",Air Mshl,19/09/2015,Other Duty Travel,Subsistence Allowance,140
"EVANS, CHRISTOPHER PAUL ANTHONY",Air Mshl,23/09/2015,Other Duty Travel,Subsistence Allowance,125
"EVANS, CHRISTOPHER PAUL ANTHONY",Air Mshl,20/09/2015,Other Duty Travel,Subsistence Allowance,3.99
"EVANS, CHRISTOPHER PAUL ANTHONY",Air Mshl,26/09/2015,Other Duty Travel,Subsistence Allowance,216.95
"EVANS, TIMOTHY PAUL",Lt Gen,15/07/2015,Other Duty Travel,Subsistence Allowance,2.9
"EVANS, TIMOTHY PAUL",Lt Gen,06/07/2015,Other Duty Travel,Subsistence Allowance,5.48
"EVANS, TIMOTHY PAUL",Lt Gen,14/07/2015,Other Duty Travel,Subsistence Allowance,15.1
"EVANS, TIMOTHY PAUL",Lt Gen,15/06/2015,Other Duty Travel,Subsistence Allowance,2.15
"EVANS, TIMOTHY PAUL",Lt Gen,29/06/2015,Other Duty Travel,Subsistence Allowance,175.87
"EVANS, TIMOTHY PAUL",Lt Gen,13/06/2015,Other Duty Travel,Subsistence Allowance,20.2
"EVANS, TIMOTHY PAUL",Lt Gen,25/06/2015,Other Duty Travel,Subsistence Allowance,171.68
"EVANS, TIMOTHY PAUL",Lt Gen,27/08/2015,Other Duty Travel,Subsistence Allowance,80.23
"EVANS, TIMOTHY PAUL",Lt Gen,07/09/2015,Other Duty Travel,Subsistence Allowance,682.21
"EVANS, TIMOTHY PAUL",Lt Gen,14/09/2015,Other Duty Travel,Subsistence Allowance,125.74
"EVERARD, JAMES RUPERT",Lt Gen,29/06/2015,Other Duty Travel,Subsistence Allowance,142
"EVERARD, JAMES RUPERT",Lt Gen,07/07/2015,Other Duty Travel,Subsistence Allowance,307.53
"EVERARD, JAMES RUPERT",Lt Gen,27/06/2015,Other Duty Travel,Parking Fees,2
"EVERARD, JAMES RUPERT",Lt Gen,18/06/2015,Other Duty Travel,Taxi Fare,12
"EVERARD, JAMES RUPERT",Lt Gen,18/06/2015,Other Duty Travel,Taxi Fare,15
"EVERARD, JAMES RUPERT",Lt Gen,13/07/2015,Other Duty Travel,Subsistence Allowance,185
"GREGORY, ANDREW RICHARD",Lt Gen,07/07/2015,Other Duty Travel,Subsistence Allowance,90.89
"GREGORY, ANDREW RICHARD",Lt Gen,28/06/2015,Other Duty Travel,Subsistence Allowance,66.89
"GREGORY, ANDREW RICHARD",Lt Gen,29/06/2015,Other Duty Travel,Subsistence Allowance,77.79
"GREGORY, ANDREW RICHARD",Lt Gen,25/08/2015,Other Duty Travel,Subsistence Allowance,13.64
"GREGORY, ANDREW RICHARD",Lt Gen,25/08/2015,Other Duty Travel,Subsistence Allowance,146.94
"GREGORY, ANDREW RICHARD",Lt Gen,09/09/2015,Other Duty Travel,Subsistence Allowance,104.89
"HOUGHTON, JOHN NICHOLAS REYNOLDS",CDS,03/07/2015,Other Duty Travel,Subsistence Allowance,12.94
"JONES, PHILIP A",V Adm,29/06/2015,Other Duty Travel,Subsistence Allowance,13.39
"LISTER, SIMON ROBERT",V Adm,27/04/2015,Other Duty Travel,NS - Private Arrangements Rate,35
"LISTER, SIMON ROBERT",V Adm,24/06/2015,Other Duty Travel,NS - Private Arrangements Rate,35
"LISTER, SIMON ROBERT",V Adm,11/05/2015,Other Duty Travel,NS - Private Arrangements Rate,105
"LISTER, SIMON ROBERT",V Adm,01/07/2015,Other Duty Travel,NS - Private Arrangements Rate,70
"LISTER, SIMON ROBERT",V Adm,09/06/2015,Other Duty Travel,NS - Private Arrangements Rate,70
"LISTER, SIMON ROBERT",V Adm,09/03/2015,Other Duty Travel,NS - Private Arrangements Rate,105
"LISTER, SIMON ROBERT",V Adm,14/04/2015,Other Duty Travel,NS - Private Arrangements Rate,70
"LISTER, SIMON ROBERT",V Adm,15/06/2015,Other Duty Travel,NS - Private Arrangements Rate,35
"LISTER, SIMON ROBERT",V Adm,01/06/2015,Other Duty Travel,NS - Private Arrangements Rate,105
"LISTER, SIMON ROBERT",V Adm,21/04/2015,Other Duty Travel,NS - Private Arrangements Rate,70
"LISTER, SIMON ROBERT",V Adm,29/06/2015,Other Duty Travel,NS - Private Arrangements Rate,35
"LISTER, SIMON ROBERT",V Adm,31/03/2015,Other Duty Travel,NS - Private Arrangements Rate,35
"LISTER, SIMON ROBERT",V Adm,23/03/2015,Other Duty Travel,NS - Private Arrangements Rate,35
"LISTER, SIMON ROBERT",V Adm,02/03/2015,Other Duty Travel,NS - Private Arrangements Rate,70
"LISTER, SIMON ROBERT",V Adm,23/02/2015,Other Duty Travel,NS - Private Arrangements Rate,35
"LISTER, SIMON ROBERT",V Adm,25/02/2015,Other Duty Travel,NS - Private Arrangements Rate,35
"MESSENGER, GORDON KENNETH",Lt Gen,09/08/2015,Other Duty Travel,Rail Fare,26.5
"NORTH, BARRY MARK",Air Mshl,10/08/2015,Other Duty Travel,Motor Mileage Allowance,178
"NORTH, BARRY MARK",Air Mshl,29/06/2015,Miscellaneous,"Med,Dent,Optcns,Prescrptn Fees",14.25
"NORTH, BARRY MARK",Air Mshl,06/09/2015,Other Duty Travel,Subsistence Allowance,350.89
"PEACH, STUART WILLIAM",Air Chf Mshl,22/08/2015,Other Duty Travel,Motor Mileage Allowance,47.5
"PEACH, STUART WILLIAM",Air Chf Mshl,13/08/2015,Other Duty Travel,Subsistence Allowance,15.89
"POFFLEY, MARK WILLIAM",Lt Gen,29/06/2015,Other Duty Travel,Subsistence Allowance,165
"POFFLEY, MARK WILLIAM",Lt Gen,30/06/2015,Other Duty Travel,Subsistence Allowance,165
"PULFORD, ANDREW DOUGLAS",Air Chf Mshl,04/07/2015,Other Duty Travel,Motor Mileage Allowance,12.75
2*,,,,,
"ASHMORE, NICHOLAS DAVID",Maj Gen,10/06/2015,Other Duty Travel,Taxi Fare,14
"ASHMORE, NICHOLAS DAVID",Maj Gen,08/06/2015,Other Duty Travel,Bus Fare,6.5
"ASHMORE, NICHOLAS DAVID",Maj Gen,23/06/2015,Other Duty Travel,Bus Fare,6.5
"ASHMORE, NICHOLAS DAVID",Maj Gen,30/06/2015,Other Duty Travel,Bus Fare,6.5
"ASHMORE, NICHOLAS DAVID",Maj Gen,13/07/2015,Other Duty Travel,Bus Fare,6.5
"ASHMORE, NICHOLAS DAVID",Maj Gen,20/07/2015,Other Duty Travel,Bus Fare,6.5
"ASHMORE, NICHOLAS DAVID",Maj Gen,15/06/2015,Other Duty Travel,Bus Fare,6.5
"ASHMORE, NICHOLAS DAVID",Maj Gen,01/07/2015,Other Duty Travel,Subsistence Allowance,14.1
"ASHMORE, NICHOLAS DAVID",Maj Gen,08/07/2015,Other Duty Travel,Rail Fare,21.5
"ASHMORE, NICHOLAS DAVID",Maj Gen,15/08/2015,Other Duty Travel,Motor Mileage Allowance,103.25
"ASHMORE, NICHOLAS DAVID",Maj Gen,13/08/2015,Other Duty Travel,Subsistence Allowance,344.94
"ASHMORE, NICHOLAS DAVID",Maj Gen,10/07/2015,Other Duty Travel,Hire Car Duty Fuel Costs,25
"ASHMORE, NICHOLAS DAVID",Maj Gen,15/08/2015,Other Duty Travel,Motor Mileage Allowance,103.25
"ASHMORE, NICHOLAS DAVID",Maj Gen,15/08/2015,Other Duty Travel,NS - Private Arrangements Rate,25.89
"ASHMORE, NICHOLAS DAVID",Maj Gen,25/06/2015,Other Duty Travel,Taxi Fare,22
"ASHMORE, NICHOLAS DAVID",Maj Gen,14/06/2015,Other Duty Travel,Taxi Fare,12
"ASHMORE, NICHOLAS DAVID",Maj Gen,08/07/2015,Other Duty Travel,Taxi Fare,14
"ASHMORE, NICHOLAS DAVID",Maj Gen,16/06/2015,Other Duty Travel,Taxi Fare,17
"ASHMORE, NICHOLAS DAVID",Maj Gen,01/07/2015,Other Duty Travel,Taxi Fare,12
"ASHMORE, NICHOLAS DAVID",Maj Gen,22/07/2015,Other Duty Travel,Taxi Fare,21.7
"ASHMORE, NICHOLAS DAVID",Maj Gen,05/06/2015,Other Duty Travel,Taxi Fare,12
"ASHMORE, NICHOLAS DAVID",Maj Gen,17/06/2015,Other Duty Travel,Taxi Fare,24
"ASHMORE, NICHOLAS DAVID",Maj Gen,08/09/2015,Other Duty Travel,Rail Fare,4.6
"ASHMORE, NICHOLAS DAVID",Maj Gen,21/08/2015,Other Duty Travel,Rail Fare,10
"ASHMORE, NICHOLAS DAVID",Maj Gen,27/08/2015,Other Duty Travel,Rail Fare,2
"ASHMORE, NICHOLAS DAVID",Maj Gen,06/09/2015,SCV Non-Warrant Costs,Motor Mileage Allowance,80
"ASHMORE, NICHOLAS DAVID",Maj Gen,08/09/2015,Other Duty Travel,Subsistence Allowance,23.6
"ASHMORE, NICHOLAS DAVID",Maj Gen,03/09/2015,Other Duty Travel,Taxi Fare,17.1
"ASHMORE, NICHOLAS DAVID",Maj Gen,20/08/2015,Other Duty Travel,Rail Fare,17.5
"ASHMORE, NICHOLAS DAVID",Maj Gen,08/09/2015,Other Duty Travel,Rail Fare,35
"ATHERTON, PAUL ASHLEY",AVM,16/09/2015,Other Duty Travel,Taxi Fare,15
"BENNETT, PAUL",R Adm,26/08/2015,Other Duty Travel,Subsistence Allowance,77.89
"BENNETT, PAUL",R Adm,25/08/2015,Other Duty Travel,Tube/Underground Fares,5
"BENNETT, PAUL",R Adm,26/08/2015,Other Duty Travel,Tube/Underground Fares,5
"BENNETT, PAUL",R Adm,17/07/2015,Other Duty Travel,Motor Mileage Allowance,45
"BENNETT, PAUL",R Adm,21/06/2015,Other Duty Travel,Taxi Fare,150
"BISHOP, TIMOTHY LAWRENCE JOHN",AVM,15/07/2015,Other Duty Travel,Subsistence Allowance,122.39
"BISHOP, TIMOTHY LAWRENCE JOHN",AVM,29/07/2015,Other Duty Travel,Subsistence Allowance,74.39
"BISHOP, TIMOTHY LAWRENCE JOHN",AVM,13/07/2015,Miscellaneous,Passport/Visa Fee,72.5
"BRECHT, MALCOLM ANDREW BRIAN",AVM,16/07/2015,Other Duty Travel,Subsistence Allowance,250
"BRECHT, MALCOLM ANDREW BRIAN",AVM,17/06/2015,Other Duty Travel,Subsistence Allowance,177.02
"BRECHT, MALCOLM ANDREW BRIAN",AVM,21/07/2015,Other Duty Travel,Subsistence Allowance,96.94
"BRECHT, MALCOLM ANDREW BRIAN",AVM,15/06/2015,Other Duty Travel,Subsistence Allowance,116.67
"BRECHT, MALCOLM ANDREW BRIAN",AVM,30/07/2015,Other Duty Travel,Subsistence Allowance,129
"BRECHT, MALCOLM ANDREW BRIAN",AVM,02/07/2015,Other Duty Travel,Subsistence Allowance,125
"BRECHT, MALCOLM ANDREW BRIAN",AVM,29/06/2015,Other Duty Travel,Parking Fees,3
"BRECHT, MALCOLM ANDREW BRIAN",AVM,26/06/2015,Other Duty Travel,Parking Fees,3
"BRECHT, MALCOLM ANDREW BRIAN",AVM,16/06/2015,Other Duty Travel,Taxi Fare,15
"BRECHT, MALCOLM ANDREW BRIAN",AVM,17/06/2015,Other Duty Travel,Rail Fare,4.8
"BRECHT, MALCOLM ANDREW BRIAN",AVM,01/06/2015,Other Duty Travel,Subsistence Allowance,193.93
"BRECHT, MALCOLM ANDREW BRIAN",AVM,04/06/2015,Other Duty Travel,Subsistence Allowance,109.12
"BRECHT, MALCOLM ANDREW BRIAN",AVM,03/06/2015,Other Duty Travel,Taxi Fare,15.03
"BRECHT, MALCOLM ANDREW BRIAN",AVM,05/05/2015,Other Duty Travel,Subsistence Allowance,75
"CHAFFEY, JONATHAN PAUL MICHAEL",Chpln Chf,20/08/2015,Other Duty Travel,Subsistence Allowance,25
"CHAFFEY, JONATHAN PAUL MICHAEL",Chpln Chf,15/07/2015,Other Duty Travel,Subsistence Allowance,161.75
"CHAFFEY, JONATHAN PAUL MICHAEL",Chpln Chf,30/06/2015,Other Duty Travel,Subsistence Allowance,24.7
"CHAFFEY, JONATHAN PAUL MICHAEL",Chpln Chf,26/05/2015,Other Duty Travel,Tube/Underground Fares,8
"CHAFFEY, JONATHAN PAUL MICHAEL",Chpln Chf,26/05/2015,Other Duty Travel,Subsistence Allowance,21.15
"CLARK, MARTIN ADRIAN",AVM,29/07/2015,Other Duty Travel,Subsistence Allowance,85.5
"CLARK, MARTIN ADRIAN",AVM,28/07/2015,Other Duty Travel,Subsistence Allowance,9.8
"CLARK, MARTIN ADRIAN",AVM,27/07/2015,Other Duty Travel,Subsistence Allowance,4.2
"CLARK, MARTIN ADRIAN",AVM,11/08/2015,Other Duty Travel,Motor Mileage Allowance,18
"CLARK, MARTIN ADRIAN",AVM,27/07/2015,Other Duty Travel,Parking Fees,6.5
"CLARK, MARTIN ADRIAN",AVM,28/07/2015,Other Duty Travel,Parking Fees,2.8
"CLARK, MARTIN ADRIAN",AVM,29/07/2015,Other Duty Travel,Parking Fees,5.6
"CLARK, MARTIN ADRIAN",AVM,27/07/2015,Other Duty Travel,Motor Mileage Allowance,6.5
"CLARK, MARTIN ADRIAN",AVM,29/07/2015,Other Duty Travel,Motor Mileage Allowance,2.5
"CLARK, MARTIN ADRIAN",AVM,28/07/2015,Other Duty Travel,Motor Mileage Allowance,2.5
"CLARK, MARTIN ADRIAN",AVM,01/07/2015,HDT Manual,HTD (Private),74.64
"CLARK, MARTIN ADRIAN",AVM,21/07/2015,Other Duty Travel,Subsistence Allowance,7.84
"CLARK, MARTIN ADRIAN",AVM,16/07/2015,Other Duty Travel,Subsistence Allowance,326
"CLARK, MARTIN ADRIAN",AVM,19/06/2015,Other Duty Travel,Subsistence Allowance,4.59
"CLARK, MARTIN ADRIAN",AVM,21/05/2015,Other Duty Travel,Subsistence Allowance,15.3
"CLARK, MARTIN ADRIAN",AVM,15/06/2015,Other Duty Travel,Subsistence Allowance,12.08
"CLARK, MARTIN ADRIAN",AVM,07/07/2015,Other Duty Travel,Subsistence Allowance,150
"CLARK, MARTIN ADRIAN",AVM,15/06/2015,Other Duty Travel,Parking Fees,6.5
"CLARK, MARTIN ADRIAN",AVM,04/06/2015,Other Duty Travel,Motor Mileage Allowance,99
"CLARK, MARTIN ADRIAN",AVM,13/06/2015,Other Duty Travel,Motor Mileage Allowance,34
"CLARK, MARTIN ADRIAN",AVM,15/06/2015,Other Duty Travel,Motor Mileage Allowance,6.5
"CLARK, MARTIN ADRIAN",AVM,19/07/2015,Other Duty Travel,Motor Mileage Allowance,22.5
"CLARK, MARTIN ADRIAN",AVM,04/07/2015,Other Duty Travel,Motor Mileage Allowance,68
"CLARK, MARTIN ADRIAN",AVM,01/06/2015,HDT Manual,HTD (Private),65.31
"CLARK, MARTIN ADRIAN",AVM,25/09/2015,HDT Manual,HTD (Private),130.62
"CLINK, JOHN ROBERT HAMILTON",R Adm,24/07/2015,Change of Assignment,Motor Mileage Allowance,128.75
"CLINK, JOHN ROBERT HAMILTON",R Adm,22/08/2015,Other Duty Travel,Rail Fare,10
"CLINK, JOHN ROBERT HAMILTON",R Adm,25/09/2015,Other Duty Travel,Subsistence Allowance,194
"CLINK, JOHN ROBERT HAMILTON",R Adm,25/09/2015,Other Duty Travel,Motor Mileage Allowance,31
"CLINK, JOHN ROBERT HAMILTON",R Adm,27/09/2015,Other Duty Travel,Motor Mileage Allowance,14
"CLINK, JOHN ROBERT HAMILTON",R Adm,25/09/2015,Other Duty Travel,Ferry Charges,217.8
"COULTER, DAVID GEORGE",Chpln Gen,12/08/2015,Other Duty Travel,Subsistence Allowance,94.5
"COULTER, DAVID GEORGE",Chpln Gen,10/08/2015,Other Duty Travel,NS - Private Arrangements Rate,35
"COULTER, DAVID GEORGE",Chpln Gen,14/08/2015,Other Duty Travel,Subsistence Allowance,101.25
"COULTER, DAVID GEORGE",Chpln Gen,03/07/2015,Other Duty Travel,Subsistence Allowance,183.84
"COULTER, DAVID GEORGE",Chpln Gen,05/07/2015,Other Duty Travel,Subsistence Allowance,15.94
"COULTER, DAVID GEORGE",Chpln Gen,04/07/2015,Other Duty Travel,Subsistence Allowance,14.49
"COULTER, DAVID GEORGE",Chpln Gen,17/07/2015,Other Duty Travel,Subsistence Allowance,94.93
"COULTER, DAVID GEORGE",Chpln Gen,18/07/2015,Other Duty Travel,Subsistence Allowance,100.47
"CRACKETT, JOHN",Maj Gen,07/08/2015,Other Duty Travel,Foreign Currency Exch Costs,14.66
"CRACKETT, JOHN",Maj Gen,06/08/2015,Other Duty Travel,Subsistence Allowance,93
"CRACKETT, JOHN",Maj Gen,15/08/2015,Other Duty Travel,Subsistence Allowance,93
"CRACKETT, JOHN",Maj Gen,06/08/2015,Other Duty Travel,Parking Fees,17
"CRACKETT, JOHN",Maj Gen,12/08/2015,Other Duty Travel,Parking Fees,8.5
"CRACKETT, JOHN",Maj Gen,18/08/2015,Other Duty Travel,Parking Fees,17
"CRACKETT, JOHN",Maj Gen,27/08/2015,Other Duty Travel,Parking Fees,8.5
"CRACKETT, JOHN",Maj Gen,16/08/2015,Other Duty Travel,Motor Mileage Allowance,83.5
"CRACKETT, JOHN",Maj Gen,06/08/2015,Other Duty Travel,Motor Mileage Allowance,7
"CRACKETT, JOHN",Maj Gen,18/08/2015,Other Duty Travel,Motor Mileage Allowance,7
"CRACKETT, JOHN",Maj Gen,13/08/2015,Other Duty Travel,Motor Mileage Allowance,46
"CRACKETT, JOHN",Maj Gen,15/08/2015,Other Duty Travel,Motor Mileage Allowance,83.5
"CRACKETT, JOHN",Maj Gen,03/08/2015,Other Duty Travel,Motor Mileage Allowance,56
"CRACKETT, JOHN",Maj Gen,01/08/2015,Other Duty Travel,Motor Mileage Allowance,87.5
"CRACKETT, JOHN",Maj Gen,12/08/2015,Other Duty Travel,Motor Mileage Allowance,14
"CRACKETT, JOHN",Maj Gen,27/08/2015,Other Duty Travel,Motor Mileage Allowance,14
"CRACKETT, JOHN",Maj Gen,05/08/2015,Other Duty Travel,Motor Mileage Allowance,7
"CRACKETT, JOHN",Maj Gen,17/08/2015,Other Duty Travel,Motor Mileage Allowance,7
"CRACKETT, JOHN",Maj Gen,08/07/2015,Other Duty Travel,Subsistence Allowance,25
"CRACKETT, JOHN",Maj Gen,15/07/2015,Other Duty Travel,Subsistence Allowance,25
"CRACKETT, JOHN",Maj Gen,24/07/2015,Other Duty Travel,Subsistence Allowance,25
"CRACKETT, JOHN",Maj Gen,18/07/2015,Other Duty Travel,Motor Mileage Allowance,30
"CRACKETT, JOHN",Maj Gen,21/07/2015,Other Duty Travel,Motor Mileage Allowance,15
"CRACKETT, JOHN",Maj Gen,26/07/2015,Other Duty Travel,Subsistence Allowance,14.95
"CRACKETT, JOHN",Maj Gen,05/07/2015,Other Duty Travel,Rail Fare,122.3
"CRACKETT, JOHN",Maj Gen,17/07/2015,Other Duty Travel,Subsistence Allowance,135
"CRACKETT, JOHN",Maj Gen,09/07/2015,Other Duty Travel,Parking Fees,17
"CRACKETT, JOHN",Maj Gen,16/07/2015,Other Duty Travel,Parking Fees,21
"CRACKETT, JOHN",Maj Gen,24/07/2015,Other Duty Travel,Parking Fees,17
"CRACKETT, JOHN",Maj Gen,06/07/2015,Other Duty Travel,Parking Fees,11.5
"CRACKETT, JOHN",Maj Gen,06/07/2015,Other Duty Travel,Motor Mileage Allowance,7
"CRACKETT, JOHN",Maj Gen,09/07/2015,Other Duty Travel,Motor Mileage Allowance,7
"CRACKETT, JOHN",Maj Gen,16/07/2015,Other Duty Travel,Motor Mileage Allowance,7
"CRACKETT, JOHN",Maj Gen,24/07/2015,Other Duty Travel,Motor Mileage Allowance,7
"CRACKETT, JOHN",Maj Gen,11/07/2015,Other Duty Travel,Motor Mileage Allowance,84.5
"CRACKETT, JOHN",Maj Gen,17/07/2015,Other Duty Travel,Motor Mileage Allowance,30
"CRACKETT, JOHN",Maj Gen,20/07/2015,Other Duty Travel,Motor Mileage Allowance,31.75
"CRACKETT, JOHN",Maj Gen,05/07/2015,Other Duty Travel,Motor Mileage Allowance,7
"CRACKETT, JOHN",Maj Gen,08/07/2015,Other Duty Travel,Motor Mileage Allowance,7
"CRACKETT, JOHN",Maj Gen,14/07/2015,Other Duty Travel,Motor Mileage Allowance,7
"CRACKETT, JOHN",Maj Gen,23/07/2015,Other Duty Travel,Motor Mileage Allowance,7
"CRACKETT, JOHN",Maj Gen,26/07/2015,Other Duty Travel,Subsistence Allowance,121.89
"CRACKETT, JOHN",Maj Gen,27/07/2015,Other Duty Travel,Subsistence Allowance,139.11
"CRACKETT, JOHN",Maj Gen,28/07/2015,Other Duty Travel,Subsistence Allowance,134.72
"CRACKETT, JOHN",Maj Gen,29/07/2015,Other Duty Travel,Subsistence Allowance,137.27
"CRACKETT, JOHN",Maj Gen,30/07/2015,Other Duty Travel,Subsistence Allowance,14.84
"CRACKETT, JOHN",Maj Gen,20/06/2015,Other Duty Travel,Motor Mileage Allowance,47
"CRACKETT, JOHN",Maj Gen,16/06/2015,Other Duty Travel,Subsistence Allowance,19.95
"CRACKETT, JOHN",Maj Gen,26/06/2015,Other Duty Travel,Motor Mileage Allowance,38.25
"CRACKETT, JOHN",Maj Gen,16/06/2015,Other Duty Travel,Taxi Fare,6
"CRACKETT, JOHN",Maj Gen,13/06/2015,Other Duty Travel,Subsistence Allowance,128
"CRACKETT, JOHN",Maj Gen,05/06/2015,Other Duty Travel,Parking Fees,17
"CRACKETT, JOHN",Maj Gen,13/06/2015,Other Duty Travel,Parking Fees,20
"CRACKETT, JOHN",Maj Gen,17/06/2015,Other Duty Travel,Parking Fees,17
"CRACKETT, JOHN",Maj Gen,23/06/2015,Other Duty Travel,Parking Fees,8.5
"CRACKETT, JOHN",Maj Gen,13/06/2015,Other Duty Travel,Motor Mileage Allowance,7
"CRACKETT, JOHN",Maj Gen,17/06/2015,Other Duty Travel,Motor Mileage Allowance,7
"CRACKETT, JOHN",Maj Gen,19/06/2015,Other Duty Travel,Motor Mileage Allowance,47
"CRACKETT, JOHN",Maj Gen,14/06/2015,Other Duty Travel,Motor Mileage Allowance,11
"CRACKETT, JOHN",Maj Gen,25/06/2015,Other Duty Travel,Motor Mileage Allowance,38.25
"CRACKETT, JOHN",Maj Gen,23/06/2015,Other Duty Travel,Motor Mileage Allowance,14
"CRACKETT, JOHN",Maj Gen,03/06/2015,Other Duty Travel,Motor Mileage Allowance,7
"CRACKETT, JOHN",Maj Gen,11/06/2015,Other Duty Travel,Motor Mileage Allowance,7
"CRACKETT, JOHN",Maj Gen,16/06/2015,Other Duty Travel,Motor Mileage Allowance,7
"CRIPWELL, RICHARD JOHN",Maj Gen,25/07/2015,Other Duty Travel,Excess Fares,25
"CRIPWELL, RICHARD JOHN",Maj Gen,23/07/2015,Other Duty Travel,Subsistence Allowance,25.86
"CRIPWELL, RICHARD JOHN",Maj Gen,25/07/2015,Other Duty Travel,Hire Car Duty Fuel Costs,28.46
"CRIPWELL, RICHARD JOHN",Maj Gen,18/07/2015,Other Duty Travel,Taxi Fare,74.25
"CRIPWELL, RICHARD JOHN",Maj Gen,16/07/2015,Other Duty Travel,Subsistence Allowance,5.11
"CRIPWELL, RICHARD JOHN",Maj Gen,16/07/2015,Other Duty Travel,Taxi Fare,22.15
"CRIPWELL, RICHARD JOHN",Maj Gen,31/08/2015,SCV Non-Warrant Costs,Motor Mileage Allowance,12.96
"CRIPWELL, RICHARD JOHN",Maj Gen,01/09/2015,SCV Non-Warrant Costs,Motor Mileage Allowance,42.46
"CULLEN, DAVID MARK",Maj Gen,20/07/2015,Other Duty Travel,Subsistence Allowance,195.88
"CULLEN, DAVID MARK",Maj Gen,20/07/2015,Other Duty Travel,Taxi Fare,50
"CULLEN, DAVID MARK",Maj Gen,20/07/2015,Other Duty Travel,Telephone Charges (Duty Calls),14.99
"CULLEN, DAVID MARK",Maj Gen,02/07/2015,Other Duty Travel,Taxi Fare,50
"CULLEN, DAVID MARK",Maj Gen,08/09/2015,Other Duty Travel,Taxi Fare,22.2
"CULLEN, DAVID MARK",Maj Gen,09/09/2015,Other Duty Travel,Taxi Fare,11
"FRASER, TIMOTHY PETER",R Adm,12/09/2015,Miscellaneous,"Med,Dent,Optcns,Prescrptn Fees",25
"FREE, JULIAN RICHARD",Maj Gen,02/07/2015,Other Duty Travel,Subsistence Allowance,351.45
"FREE, JULIAN RICHARD",Maj Gen,08/07/2015,Other Duty Travel,Subsistence Allowance,160.43
"FREE, JULIAN RICHARD",Maj Gen,29/06/2015,Other Duty Travel,Foreign Currency Exch Costs,3
"FREE, JULIAN RICHARD",Maj Gen,25/06/2015,Other Duty Travel,Foreign Currency Exch Costs,7.84
"FREE, JULIAN RICHARD",Maj Gen,20/06/2015,Other Duty Travel,Subsistence Allowance,283.69
"FREE, JULIAN RICHARD",Maj Gen,26/06/2015,Other Duty Travel,Taxi Fare,38.13
"FREE, JULIAN RICHARD",Maj Gen,24/06/2015,Other Duty Travel,Tube/Underground Fares,1.96
"GRAY, SUSAN CATHERINE",AVM,28/07/2015,Other Duty Travel,Subsistence Allowance,15.06
"GRAY, SUSAN CATHERINE",AVM,15/07/2015,Other Duty Travel,Subsistence Allowance,2.17
"GRAY, SUSAN CATHERINE",AVM,14/07/2015,Other Duty Travel,Taxi Fare,28
"GRAY, SUSAN CATHERINE",AVM,15/07/2015,Other Duty Travel,Taxi Fare,18
"GRAY, SUSAN CATHERINE",AVM,16/07/2015,Other Duty Travel,Taxi Fare,19
"GRAY, SUSAN CATHERINE",AVM,27/07/2015,Other Duty Travel,Subsistence Allowance,664.92
"GRAY, SUSAN CATHERINE",AVM,14/07/2015,Other Duty Travel,Subsistence Allowance,558.67
"GRAY, SUSAN CATHERINE",AVM,05/03/2015,Other Duty Travel,Subsistence Allowance,69.01
"GRAY, SUSAN CATHERINE",AVM,07/07/2015,Other Duty Travel,Subsistence Allowance,70.6
"GRAY, SUSAN CATHERINE",AVM,02/07/2015,Other Duty Travel,Subsistence Allowance,0.89
"GRAY, SUSAN CATHERINE",AVM,29/06/2015,Other Duty Travel,Subsistence Allowance,98.46
"GRAY, SUSAN CATHERINE",AVM,11/03/2014,Other Duty Travel,Parking Fees,6.7
"GRAY, SUSAN CATHERINE",AVM,17/12/2013,Other Duty Travel,Parking Fees,6.7
"GRAY, SUSAN CATHERINE",AVM,13/01/2014,Other Duty Travel,Parking Fees,6.7
"GRAY, SUSAN CATHERINE",AVM,11/09/2013,Other Duty Travel,Parking Fees,6.5
"GRAY, SUSAN CATHERINE",AVM,09/05/2014,Other Duty Travel,Parking Fees,6.7
"GRAY, SUSAN CATHERINE",AVM,05/03/2014,Other Duty Travel,Parking Fees,6.7
"GRAY, SUSAN CATHERINE",AVM,15/11/2013,Other Duty Travel,Parking Fees,4.5
"GRAY, SUSAN CATHERINE",AVM,12/11/2013,Other Duty Travel,Parking Fees,6.5
"GRAY, SUSAN CATHERINE",AVM,13/11/2013,Other Duty Travel,Parking Fees,4.5
"GRAY, SUSAN CATHERINE",AVM,03/10/2013,Other Duty Travel,Parking Fees,6.5
"GRAY, SUSAN CATHERINE",AVM,27/06/2014,Other Duty Travel,Parking Fees,6.7
"GRAY, SUSAN CATHERINE",AVM,22/01/2014,Other Duty Travel,Parking Fees,6.7
"GRAY, SUSAN CATHERINE",AVM,19/06/2014,Other Duty Travel,Parking Fees,6.7
"GRAY, SUSAN CATHERINE",AVM,17/01/2014,Other Duty Travel,Parking Fees,6.7
"GRAY, SUSAN CATHERINE",AVM,21/01/2014,Other Duty Travel,Parking Fees,6.7
"GRAY, SUSAN CATHERINE",AVM,08/04/2014,Other Duty Travel,Parking Fees,6.7
"GRAY, SUSAN CATHERINE",AVM,26/09/2013,Other Duty Travel,Parking Fees,6.5
"GRAY, SUSAN CATHERINE",AVM,16/09/2013,Other Duty Travel,Parking Fees,6.5
"GRAY, SUSAN CATHERINE",AVM,22/10/2013,Other Duty Travel,Parking Fees,4.5
"GRAY, SUSAN CATHERINE",AVM,08/11/2013,Other Duty Travel,Parking Fees,4.5
"GRAY, SUSAN CATHERINE",AVM,18/11/2013,Other Duty Travel,Parking Fees,6.7
"GRAY, SUSAN CATHERINE",AVM,21/11/2013,Other Duty Travel,Parking Fees,6.7
"GRAY, SUSAN CATHERINE",AVM,08/08/2014,Other Duty Travel,Parking Fees,6.7
"GRAY, SUSAN CATHERINE",AVM,17/10/2014,Other Duty Travel,Parking Fees,6.7
"GRAY, SUSAN CATHERINE",AVM,01/08/2014,Other Duty Travel,Parking Fees,6.7
"GRAY, SUSAN CATHERINE",AVM,16/10/2014,Other Duty Travel,Parking Fees,6.7
"GRAY, SUSAN CATHERINE",AVM,12/12/2014,Other Duty Travel,Parking Fees,6.7
"GRAY, SUSAN CATHERINE",AVM,07/08/2014,Other Duty Travel,Parking Fees,6.7
"GRAY, SUSAN CATHERINE",AVM,24/09/2013,Other Duty Travel,Parking Fees,6.5
"GRAY, SUSAN CATHERINE",AVM,17/09/2014,Other Duty Travel,Parking Fees,6.7
"GRAY, SUSAN CATHERINE",AVM,13/09/2013,Other Duty Travel,Parking Fees,6.5
"GRAY, SUSAN CATHERINE",AVM,02/04/2014,Other Duty Travel,Parking Fees,6.7
"HOOPER, IVAN",Maj Gen,18/06/2015,Other Duty Travel,Air Fare (Actual Cost),16.34
"HOOPER, IVAN",Maj Gen,23/06/2015,Other Duty Travel,Subsistence Allowance,128.74
"HOOPER, IVAN",Maj Gen,15/06/2015,Other Duty Travel,Subsistence Allowance,717.92
"IRVINE, LINDSAY JOHN",AVM,16/07/2015,Other Duty Travel,Subsistence Allowance,125
"IRVINE, LINDSAY JOHN",AVM,27/04/2015,Other Duty Travel,Subsistence Allowance,233.06
"JOHNSTONE, CLIVE CHARLES CARRUTHERS",V Adm,18/05/2015,Other Duty Travel,Subsistence Allowance,7.15
"JOHNSTONE, CLIVE CHARLES CARRUTHERS",V Adm,29/04/2015,Other Duty Travel,Subsistence Allowance,15.49
"JOHNSTONE, CLIVE CHARLES CARRUTHERS",V Adm,28/04/2015,Other Duty Travel,Subsistence Allowance,11.7
"KEY, BENJAMIN J",R Adm,18/05/2015,Other Duty Travel,Subsistence Allowance,124.29
"KEY, BENJAMIN J",R Adm,17/05/2015,Other Duty Travel,Subsistence Allowance,79
"KEY, BENJAMIN J",R Adm,28/05/2015,Other Duty Travel,Subsistence Allowance,100.75
"KINGWELL, JOHN MATTHEW LEONARD",R Adm,30/07/2015,Other Duty Travel,Subsistence Allowance,17.74
"KINGWELL, JOHN MATTHEW LEONARD",R Adm,31/07/2015,Other Duty Travel,Taxi Fare,11.5
"KINGWELL, JOHN MATTHEW LEONARD",R Adm,30/07/2015,Other Duty Travel,Taxi Fare,11.5
"KINGWELL, JOHN MATTHEW LEONARD",R Adm,14/07/2015,Other Duty Travel,Subsistence Allowance,4.84
"KINGWELL, JOHN MATTHEW LEONARD",R Adm,15/07/2015,Other Duty Travel,Subsistence Allowance,201.89
"KINGWELL, JOHN MATTHEW LEONARD",R Adm,16/07/2015,Other Duty Travel,Subsistence Allowance,2.2
"KINGWELL, JOHN MATTHEW LEONARD",R Adm,10/06/2015,Other Duty Travel,Foreign Currency Exch Costs,28.81
"KINGWELL, JOHN MATTHEW LEONARD",R Adm,30/06/2015,Other Duty Travel,Subsistence Allowance,175.89
"KINGWELL, JOHN MATTHEW LEONARD",R Adm,10/06/2015,Other Duty Travel,Subsistence Allowance,255.74
"KINGWELL, JOHN MATTHEW LEONARD",R Adm,10/06/2015,Other Duty Travel,Subsistence Allowance,584.11
"KINGWELL, JOHN MATTHEW LEONARD",R Adm,21/06/2015,Other Duty Travel,Subsistence Allowance,345.07
"KINGWELL, JOHN MATTHEW LEONARD",R Adm,27/06/2015,Other Duty Travel,Taxi Fare,22.94
"KINGWELL, JOHN MATTHEW LEONARD",R Adm,23/08/2015,Other Duty Travel,Subsistence Allowance,28.55
"KINGWELL, JOHN MATTHEW LEONARD",R Adm,06/09/2015,Other Duty Travel,Subsistence Allowance,36.13
"KNIGHTON, RICHARD JOHN",AVM,19/07/2015,Other Duty Travel,Subsistence Allowance,431.89
"MORRISON, IAN CRAIG",AVM,26/07/2015,Other Duty Travel,Subsistence Allowance,1828
"MORRISON, IAN CRAIG",AVM,12/08/2015,Other Duty Travel,Parking Fees,30
"MORRISON, IAN CRAIG",AVM,24/07/2015,Other Duty Travel,Rail Fare,21.5
"MORRISON, IAN CRAIG",AVM,28/07/2015,Other Duty Travel,Taxi Fare,10
"MORRISON, IAN CRAIG",AVM,24/07/2015,Other Duty Travel,Taxi Fare,18
"MORRISON, IAN CRAIG",AVM,27/07/2015,Other Duty Travel,Tube/Underground Fares,4.8
"MORRISON, IAN CRAIG",AVM,28/07/2015,Other Duty Travel,Tube/Underground Fares,4.8
"MORRISON, IAN CRAIG",AVM,29/07/2015,Other Duty Travel,Tube/Underground Fares,4.8
"MORRISON, IAN CRAIG",AVM,29/07/2015,Other Duty Travel,Tube/Underground Fares,4.8
"MORRISON, IAN CRAIG",AVM,27/07/2015,Other Duty Travel,Tube/Underground Fares,4.8
"MORRISON, IAN CRAIG",AVM,28/07/2015,Other Duty Travel,Tube/Underground Fares,4.8
"MORRISON, IAN CRAIG",AVM,19/08/2015,Other Duty Travel,Subsistence Allowance,257.4
"MORRISON, IAN CRAIG",AVM,23/08/2015,Other Duty Travel,Subsistence Allowance,284.9
"MORRISON, IAN CRAIG",AVM,19/08/2015,Other Duty Travel,Rail Fare,36.25
"MORRISON, IAN CRAIG",AVM,20/08/2015,Other Duty Travel,Taxi Fare,13
"MORRISON, IAN CRAIG",AVM,21/08/2015,Other Duty Travel,Taxi Fare,10
"MORRISON, IAN CRAIG",AVM,21/08/2015,Other Duty Travel,Taxi Fare,3.8
"MORRISON, IAN CRAIG",AVM,24/08/2015,Other Duty Travel,Taxi Fare,10
"MORRISON, IAN CRAIG",AVM,19/08/2015,Other Duty Travel,Taxi Fare,19
"MORRISON, IAN CRAIG",AVM,24/08/2015,Other Duty Travel,Taxi Fare,12
"MORRISON, IAN CRAIG",AVM,20/08/2015,Other Duty Travel,Tube/Underground Fares,4.8
"MORRISON, IAN CRAIG",AVM,24/08/2015,Other Duty Travel,Tube/Underground Fares,4.8
"MORRISON, IAN CRAIG",AVM,24/08/2015,Other Duty Travel,Tube/Underground Fares,4.8
"MORRISON, IAN CRAIG",AVM,20/08/2015,Other Duty Travel,Tube/Underground Fares,4.8
"MORRISON, IAN CRAIG",AVM,19/07/2015,Other Duty Travel,Subsistence Allowance,443.4
"MORRISON, IAN CRAIG",AVM,19/07/2015,Other Duty Travel,Subsistence Allowance,443.4
"MORRISON, IAN CRAIG",AVM,03/07/2015,Other Duty Travel,Rail Fare,21.5
"MORRISON, IAN CRAIG",AVM,19/07/2015,Other Duty Travel,Rail Fare,31.2
"MORRISON, IAN CRAIG",AVM,22/07/2015,Other Duty Travel,Rail Fare,21.5
"MORRISON, IAN CRAIG",AVM,19/07/2015,Other Duty Travel,Rail Fare,28
"MORRISON, IAN CRAIG",AVM,21/07/2015,Other Duty Travel,Taxi Fare,5
"MORRISON, IAN CRAIG",AVM,21/07/2015,Other Duty Travel,Taxi Fare,5
"MORRISON, IAN CRAIG",AVM,03/07/2015,Other Duty Travel,Taxi Fare,19
"MORRISON, IAN CRAIG",AVM,22/07/2015,Other Duty Travel,Taxi Fare,17
"MORRISON, IAN CRAIG",AVM,19/07/2015,Other Duty Travel,Taxi Fare,19
"MORRISON, IAN CRAIG",AVM,21/07/2015,Other Duty Travel,Tube/Underground Fares,4.8
"MORRISON, IAN CRAIG",AVM,20/07/2015,Other Duty Travel,Tube/Underground Fares,4.8
"MORRISON, IAN CRAIG",AVM,21/07/2015,Other Duty Travel,Tube/Underground Fares,4.8
"MORRISON, IAN CRAIG",AVM,20/07/2015,Other Duty Travel,Tube/Underground Fares,4.8
"MORRISON, IAN CRAIG",AVM,19/06/2015,Other Duty Travel,Subsistence Allowance,457.61
"MORRISON, IAN CRAIG",AVM,23/06/2015,Other Duty Travel,Taxi Fare,5.2
"MORRISON, IAN CRAIG",AVM,22/06/2015,Other Duty Travel,Taxi Fare,10
"MORRISON, IAN CRAIG",AVM,22/06/2015,Other Duty Travel,Taxi Fare,14
"MORRISON, IAN CRAIG",AVM,19/06/2015,Other Duty Travel,Tube/Underground Fares,4.8
"MORRISON, IAN CRAIG",AVM,23/06/2015,Other Duty Travel,Tube/Underground Fares,4.8
"MORRISON, IAN CRAIG",AVM,19/06/2015,Other Duty Travel,Tube/Underground Fares,4.8
"MORRISON, IAN CRAIG",AVM,23/06/2015,Other Duty Travel,Tube/Underground Fares,4.8
"MORRISON, IAN CRAIG",AVM,28/05/2015,Other Duty Travel,Subsistence Allowance,703
"MORRISON, IAN CRAIG",AVM,06/06/2015,Other Duty Travel,Subsistence Allowance,1608
"MORRISON, IAN CRAIG",AVM,08/06/2015,Other Duty Travel,Tube/Underground Fares,4.8
"MORRISON, IAN CRAIG",AVM,29/05/2015,Other Duty Travel,Tube/Underground Fares,7.9
"MORRISON, IAN CRAIG",AVM,16/06/2015,Other Duty Travel,Taxi Fare,20
"MORRISON, IAN CRAIG",AVM,10/06/2015,Other Duty Travel,Taxi Fare,10
"MORRISON, IAN CRAIG",AVM,12/06/2015,Other Duty Travel,Taxi Fare,19
"MORRISON, IAN CRAIG",AVM,11/06/2015,Other Duty Travel,Taxi Fare,12
"MORRISON, IAN CRAIG",AVM,15/06/2015,Other Duty Travel,Taxi Fare,10
"MORRISON, IAN CRAIG",AVM,09/06/2015,Other Duty Travel,Taxi Fare,10
"MORRISON, IAN CRAIG",AVM,08/06/2015,Other Duty Travel,Taxi Fare,11
"MORRISON, IAN CRAIG",AVM,28/05/2015,Other Duty Travel,Taxi Fare,20
"MORRISON, IAN CRAIG",AVM,28/05/2015,Other Duty Travel,Taxi Fare,14
"MORRISON, IAN CRAIG",AVM,08/06/2015,Other Duty Travel,Taxi Fare,12
"MORRISON, IAN CRAIG",AVM,08/06/2015,Other Duty Travel,Taxi Fare,13
"MORRISON, IAN CRAIG",AVM,28/05/2015,Other Duty Travel,Tube/Underground Fares,4.8
"MORRISON, IAN CRAIG",AVM,10/06/2015,Other Duty Travel,Tube/Underground Fares,4.8
"MORRISON, IAN CRAIG",AVM,11/06/2015,Other Duty Travel,Tube/Underground Fares,4.8
"MORRISON, IAN CRAIG",AVM,12/06/2015,Other Duty Travel,Tube/Underground Fares,4.8
"MORRISON, IAN CRAIG",AVM,15/06/2015,Other Duty Travel,Tube/Underground Fares,4.8
"MORRISON, IAN CRAIG",AVM,09/06/2015,Other Duty Travel,Tube/Underground Fares,4.8
"MORRISON, IAN CRAIG",AVM,09/06/2015,Other Duty Travel,Tube/Underground Fares,4.8
"MORRISON, IAN CRAIG",AVM,08/06/2015,Other Duty Travel,Tube/Underground Fares,4.8
"MORRISON, IAN CRAIG",AVM,15/06/2015,Other Duty Travel,Tube/Underground Fares,4.8
"MORRISON, IAN CRAIG",AVM,10/06/2015,Other Duty Travel,Tube/Underground Fares,4.8
"MORRISON, IAN CRAIG",AVM,11/06/2015,Other Duty Travel,Tube/Underground Fares,4.8
"MORRISON, IAN CRAIG",AVM,28/05/2015,Other Duty Travel,Tube/Underground Fares,4.8
"MORRISON, IAN CRAIG",AVM,03/09/2015,Other Duty Travel,Subsistence Allowance,159.75
"MORRISON, IAN CRAIG",AVM,07/09/2015,Other Duty Travel,Subsistence Allowance,1099
"MORRISON, IAN CRAIG",AVM,14/09/2015,Other Duty Travel,Rail Fare,21
"MORRISON, IAN CRAIG",AVM,03/09/2015,Other Duty Travel,Rail Fare,21
"MORRISON, IAN CRAIG",AVM,04/09/2015,Other Duty Travel,Taxi Fare,10
"MORRISON, IAN CRAIG",AVM,14/09/2015,Other Duty Travel,Taxi Fare,12
"MORRISON, IAN CRAIG",AVM,08/09/2015,Other Duty Travel,Taxi Fare,12
"MORRISON, IAN CRAIG",AVM,09/09/2015,Other Duty Travel,Taxi Fare,10
"MORRISON, IAN CRAIG",AVM,03/09/2015,Other Duty Travel,Taxi Fare,15
"MORRISON, IAN CRAIG",AVM,08/09/2015,Other Duty Travel,Tube/Underground Fares,4.8
"MORRISON, IAN CRAIG",AVM,07/09/2015,Other Duty Travel,Tube/Underground Fares,4.8
"MORRISON, IAN CRAIG",AVM,07/09/2015,Other Duty Travel,Tube/Underground Fares,4.8
"MORRISON, IAN CRAIG",AVM,09/09/2015,Other Duty Travel,Tube/Underground Fares,4.8
"MORRISON, IAN CRAIG",AVM,10/09/2015,Other Duty Travel,Tube/Underground Fares,4.8
"MORRISON, IAN CRAIG",AVM,11/09/2015,Other Duty Travel,Tube/Underground Fares,4.8
"MORRISON, IAN CRAIG",AVM,09/09/2015,Other Duty Travel,Tube/Underground Fares,4.8
"MORRISON, IAN CRAIG",AVM,10/09/2015,Other Duty Travel,Tube/Underground Fares,4.8
"MORRISON, IAN CRAIG",AVM,11/09/2015,Other Duty Travel,Tube/Underground Fares,4.8
"MORRISON, IAN CRAIG",AVM,08/09/2015,Other Duty Travel,Tube/Underground Fares,4.8
"NUGEE, RICHARD EDWARD",Maj Gen,07/07/2015,Other Duty Travel,Subsistence Allowance,100.36
"PARKER, HENRY HARDYMAN",R Adm,25/06/2015,Other Duty Travel,Subsistence Allowance,4.6
"PARKER, HENRY HARDYMAN",R Adm,02/07/2015,Other Duty Travel,Subsistence Allowance,21
"PARKER, HENRY HARDYMAN",R Adm,01/09/2015,Other Duty Travel,Subsistence Allowance,10.79
"PARKER, HENRY HARDYMAN",R Adm,02/09/2015,Other Duty Travel,Taxi Fare,15
"PATTERSON, JOHN ROBERT",Maj Gen,01/05/2015,Other Duty Travel,Subsistence Allowance,414.63
"PATTERSON, JOHN ROBERT",Maj Gen,06/05/2015,Other Duty Travel,Taxi Fare,17.38
"PATTERSON, JOHN ROBERT",Maj Gen,05/05/2015,Other Duty Travel,Foreign Currency Exch Costs,7.15
"PATTERSON, JOHN ROBERT",Maj Gen,27/11/2014,Administrative Costs,Army Uniform Grants,60
"PATTERSON, JOHN ROBERT",Maj Gen,18/05/2015,Administrative Costs,Army Uniform Grants,240
"PATTERSON, JOHN ROBERT",Maj Gen,24/09/2015,Advances,Adv of Travel & Subsistence,849.67
"POPE, NICHOLAS ARTHUR WILLIAM",Maj Gen,20/07/2015,Other Duty Travel,Subsistence Allowance,313
"POPE, NICHOLAS ARTHUR WILLIAM",Maj Gen,20/07/2015,Other Duty Travel,Taxi Fare,25
"POPE, NICHOLAS ARTHUR WILLIAM",Maj Gen,01/07/2015,Other Duty Travel,Taxi Fare,39
"POPE, NICHOLAS ARTHUR WILLIAM",Maj Gen,30/06/2015,Other Duty Travel,Subsistence Allowance,453.15
"POPE, NICHOLAS ARTHUR WILLIAM",Maj Gen,07/09/2015,Other Duty Travel,Subsistence Allowance,120
"POPE, NICHOLAS ARTHUR WILLIAM",Maj Gen,15/09/2015,Other Duty Travel,Subsistence Allowance,104.63
"POPE, NICHOLAS ARTHUR WILLIAM",Maj Gen,15/09/2015,Other Duty Travel,Tube/Underground Fares,12
"POPE, NICHOLAS ARTHUR WILLIAM",Maj Gen,21/09/2015,Other Duty Travel,Subsistence Allowance,292.05
"POPE, NICHOLAS ARTHUR WILLIAM",Maj Gen,21/09/2015,Other Duty Travel,Taxi Fare,25
"POPE, NICHOLAS ARTHUR WILLIAM",Maj Gen,23/09/2015,Other Duty Travel,Taxi Fare,25
"RADFORD, TIMOTHY BUCHAN",Lt Gen,24/06/2015,Other Duty Travel,Subsistence Allowance,137
"RADFORD, TIMOTHY BUCHAN",Lt Gen,30/06/2015,Other Duty Travel,Subsistence Allowance,155
"RADFORD, TIMOTHY BUCHAN",Lt Gen,25/06/2015,Other Duty Travel,Subsistence Allowance,162
"RADFORD, TIMOTHY BUCHAN",Lt Gen,10/09/2015,Advances,Adv of Travel & Subsistence,1067.71
"SEMPLE, RICHARD JAMES",Maj Gen,22/07/2015,Other Duty Travel,Subsistence Allowance,3.55
"SEMPLE, RICHARD JAMES",Maj Gen,07/08/2015,Other Duty Travel,Subsistence Allowance,5.35
"SEMPLE, RICHARD JAMES",Maj Gen,15/06/2015,Other Duty Travel,Subsistence Allowance,2.21
"SEMPLE, RICHARD JAMES",Maj Gen,15/07/2015,Other Duty Travel,Subsistence Allowance,2.9
"SEMPLE, RICHARD JAMES",Maj Gen,12/06/2015,Other Duty Travel,Subsistence Allowance,3.1
"SEMPLE, RICHARD JAMES",Maj Gen,12/09/2015,Other Duty Travel,Subsistence Allowance,3.29
"SEMPLE, RICHARD JAMES",Maj Gen,13/09/2015,Other Duty Travel,Subsistence Allowance,172.25
"SEMPLE, RICHARD JAMES",Maj Gen,28/07/2015,Other Duty Travel,Subsistence Allowance,6.3
"SEMPLE, RICHARD JAMES",Maj Gen,06/08/2015,Other Duty Travel,Subsistence Allowance,4.6
"SEMPLE, RICHARD JAMES",Maj Gen,08/09/2015,Other Duty Travel,Subsistence Allowance,2.3
"SEMPLE, RICHARD JAMES",Maj Gen,16/09/2015,Other Duty Travel,Subsistence Allowance,9.27
"STRINGER, EDWARD JACKSON",AVM,15/05/2015,Other Duty Travel,Motor Mileage Allowance,58
"STUBBS, DAVID JOHN",AVM,25/07/2015,Other Duty Travel,Motor Mileage Allowance,17.75
"STUBBS, DAVID JOHN",AVM,07/08/2015,Other Duty Travel,Subsistence Allowance,282.97
"TURNER, ANDREW MARK",AVM,29/04/2015,Other Duty Travel,Foreign Currency Exch Costs,4.16
"TURNER, ANDREW MARK",AVM,23/04/2015,Other Duty Travel,Taxi Fare,10
"TURNER, ANDREW MARK",AVM,28/07/2015,Other Duty Travel,Taxi Fare,20
"TURNER, ANDREW MARK",AVM,13/04/2015,Other Duty Travel,Taxi Fare,10
"TURNER, ANDREW MARK",AVM,29/03/2015,Other Duty Travel,Taxi Fare,2.38
"TURNER, ANDREW MARK",AVM,30/04/2015,Other Duty Travel,Taxi Fare,21.74
"WALKER, ALASDAIR JAMES",Surg R Adm,20/08/2015,Other Duty Travel,Subsistence Allowance,322.73
"WALKER, ALASDAIR JAMES",Surg R Adm,20/08/2015,Other Duty Travel,Foreign Currency Exch Costs,9.6
"WALKER, ALASDAIR JAMES",Surg R Adm,16/08/2015,Other Duty Travel,Bus Fare,9
"WALKER, ALASDAIR JAMES",Surg R Adm,16/08/2015,Other Duty Travel,Subsistence Allowance,92.89
"WALKER, ALASDAIR JAMES",Surg R Adm,10/09/2015,Other Duty Travel,Motor Mileage Allowance,44
"WATERFALL, GARY MARTIN",AVM,17/08/2015,Other Duty Travel,Subsistence Allowance,61.02
"WATERFALL, GARY MARTIN",AVM,05/09/2015,Other Duty Travel,Subsistence Allowance,10.69
"WELCH, NICHOLAS",Maj Gen,25/08/2015,Other Duty Travel,Subsistence Allowance,247
"WELCH, NICHOLAS",Maj Gen,26/08/2015,Other Duty Travel,Subsistence Allowance,8.45
"WELCH, NICHOLAS",Maj Gen,01/07/2015,Other Duty Travel,Subsistence Allowance,111.94
"WELCH, NICHOLAS",Maj Gen,30/06/2015,Other Duty Travel,Subsistence Allowance,52.32
"WELCH, NICHOLAS",Maj Gen,01/07/2015,Other Duty Travel,Hire Car Duty Fuel Costs,42.12
"WELCH, NICHOLAS",Maj Gen,02/07/2015,Other Duty Travel,Subsistence Allowance,1.96
"WELCH, NICHOLAS",Maj Gen,29/06/2015,Other Duty Travel,Subsistence Allowance,64.49
"WELCH, NICHOLAS",Maj Gen,29/06/2015,Other Duty Travel,Subsistence Allowance,11.15
"WELCH, NICHOLAS",Maj Gen,14/07/2015,Other Duty Travel,Subsistence Allowance,4.78
"WELCH, NICHOLAS",Maj Gen,14/07/2015,Other Duty Travel,Subsistence Allowance,7.45
"WELCH, NICHOLAS",Maj Gen,03/09/2015,Other Duty Travel,Subsistence Allowance,25
"WEST, MARGARET ELAINE",AVM,01/07/2015,Other Duty Travel,Subsistence Allowance,4.4
"WEST, MARGARET ELAINE",AVM,27/07/2015,Other Duty Travel,Subsistence Allowance,8.04
"WEST, MARGARET ELAINE",AVM,30/07/2015,Other Duty Travel,Subsistence Allowance,8.49
"WEST, MARGARET ELAINE",AVM,05/08/2015,Other Duty Travel,Subsistence Allowance,17.44
"WEST, MARGARET ELAINE",AVM,28/07/2015,Other Duty Travel,Subsistence Allowance,12.9
"WEST, MARGARET ELAINE",AVM,04/08/2015,Other Duty Travel,Subsistence Allowance,4.2
"WEST, MARGARET ELAINE",AVM,06/07/2015,Other Duty Travel,Subsistence Allowance,4.44
"WEST, MARGARET ELAINE",AVM,17/08/2015,Other Duty Travel,Subsistence Allowance,23.65
"WEST, MARGARET ELAINE",AVM,13/08/2015,Other Duty Travel,Subsistence Allowance,5.15
"WEST, MARGARET ELAINE",AVM,18/08/2015,Other Duty Travel,Subsistence Allowance,5.15
"WEST, MARGARET ELAINE",AVM,03/06/2015,Other Duty Travel,Subsistence Allowance,4.6
"WEST, MARGARET ELAINE",AVM,01/06/2015,Other Duty Travel,Subsistence Allowance,4.3
"WEST, MARGARET ELAINE",AVM,18/06/2015,Other Duty Travel,Subsistence Allowance,11.65
"WEST, MARGARET ELAINE",AVM,09/06/2015,Other Duty Travel,Subsistence Allowance,7
"WEST, MARGARET ELAINE",AVM,21/05/2015,Other Duty Travel,Subsistence Allowance,11.65
"WEST, MARGARET ELAINE",AVM,30/06/2015,Other Duty Travel,Subsistence Allowance,10.49
"WEST, MARGARET ELAINE",AVM,29/06/2015,Other Duty Travel,Subsistence Allowance,4.45
"WEST, MARGARET ELAINE",AVM,24/06/2015,Other Duty Travel,Subsistence Allowance,5.1
"WEST, MARGARET ELAINE",AVM,15/06/2015,Other Duty Travel,Subsistence Allowance,8.2
"WEST, MARGARET ELAINE",AVM,04/06/2015,Other Duty Travel,Subsistence Allowance,114
"WEST, MARGARET ELAINE",AVM,27/05/2015,Other Duty Travel,Subsistence Allowance,9.47
"WEST, MARGARET ELAINE",AVM,26/06/2015,Other Duty Travel,Subsistence Allowance,9.06
"WEST, MARGARET ELAINE",AVM,15/09/2015,Other Duty Travel,Subsistence Allowance,5.35
"WEST, MARGARET ELAINE",AVM,10/09/2015,Other Duty Travel,Subsistence Allowance,5.04
"WEST, MARGARET ELAINE",AVM,03/09/2015,Other Duty Travel,Subsistence Allowance,3.98
"WEST, MARGARET ELAINE",AVM,08/09/2015,Other Duty Travel,Subsistence Allowance,162.75
"WEST, MARGARET ELAINE",AVM,01/09/2015,Other Duty Travel,Subsistence Allowance,7.12
"WEST, MARGARET ELAINE",AVM,27/08/2015,Other Duty Travel,Subsistence Allowance,8.72
"WEST, MARGARET ELAINE",AVM,14/09/2015,Other Duty Travel,Subsistence Allowance,9.24
"WEST, MARGARET ELAINE",AVM,25/08/2015,Other Duty Travel,Subsistence Allowance,2.4
"WEST, MARGARET ELAINE",AVM,15/09/2015,Other Duty Travel,Taxi Fare,16
"WEST, MARGARET ELAINE",AVM,10/09/2015,Other Duty Travel,Taxi Fare,11.5
"WEST, MARGARET ELAINE",AVM,09/09/2015,Other Duty Travel,Taxi Fare,6.5
"WEST, MARGARET ELAINE",AVM,08/09/2015,Other Duty Travel,Taxi Fare,4
"WHEATLEY, IAN J",Chpln of the Fleet,14/08/2015,Other Duty Travel,Subsistence Allowance,89.14
"WIGSTON, MICHAEL",AVM,03/09/2015,Other Duty Travel,Subsistence Allowance,157.03
"WIGSTON, MICHAEL",AVM,24/09/2015,Other Duty Travel,Hire Car Duty Fuel Costs,13.32
"WIGSTON, MICHAEL",AVM,20/09/2015,Other Duty Travel,Hire Car Duty Fuel Costs,12.37
"WILLIAMS, SIMON PAUL",R Adm,29/07/2015,Other Duty Travel,Subsistence Allowance,247.78
"WILLIAMS, SIMON PAUL",R Adm,29/07/2015,Other Duty Travel,Congestion Charge,11.5
"WILLIAMS, SIMON PAUL",R Adm,30/07/2015,Other Duty Travel,Tube/Underground Fares,4.3
"WILLIAMS, SIMON PAUL",R Adm,29/07/2015,Other Duty Travel,Motor Mileage Allowance,37.25
"WILLIAMS, SIMON PAUL",R Adm,29/07/2015,Other Duty Travel,Tube/Underground Fares,4.3
"WILLIAMS, SIMON PAUL",R Adm,22/07/2015,Other Duty Travel,Motor Mileage Allowance,95.25
"WILLIAMS, SIMON PAUL",R Adm,11/09/2015,Other Duty Travel,Motor Mileage Allowance,86
"WILLIAMS, SIMON PAUL",R Adm,14/09/2015,Other Duty Travel,Subsistence Allowance,106.52
